Cogmind - Beta 10.2 *** ADVENTURER MODE // 2020.11.13 @ 16:14:19 // Halloween2020/ForbiddenLore Player: STB Result: Self-destructed Performance ------------- Evolutions (2) 1000 Regions Visited (3) 600 Robots Destroyed (29) 145 Value Destroyed (794) 794 Prototype IDs (0) 0 Alien Tech Used (0) 0 Bonus (0) 0 TOTAL SCORE: 2539 Bonus ------- None Cogmind --------- Core Integrity 550/550 Matter 300/300 Energy 430/430 System Corruption 0% Temperature Cool (0) Movement Treading (180) Ox1 Location -8/Materials Parts ------- > --- POWER (3) -------- Improved Ion Engine Reinforced Ion Engine > --- PROPULSION (2) --- Light Treads Light Treads > --- UTILITY (3) ------ Improved Heat Sink High-capacity Storage Unit > --- WEAPON (3) ------- EM Pulse Gun Beam Cannon Maul > --- INVENTORY (12) --- Light Treads Sensor Array Signal Interpreter Light Armor Plating Hacking Suite Medium Laser Medium Laser Beam Cannon Beam Cannon Peak State ------------ > --- POWER ------------ Improved Ion Engine Reinforced Ion Engine > --- PROPULSION ------- Light Treads Light Treads > --- UTILITY ---------- Improved Heat Sink High-capacity Storage Unit > --- WEAPON ----------- EM Pulse Gun Beam Cannon Maul > --- INVENTORY -------- Light Treads Sensor Array Signal Interpreter Light Armor Plating Hacking Suite Medium Laser Medium Laser Beam Cannon Beam Cannon [Rating: 15] Favorites ----------- Power Improved Ion Engine Engine Improved Ion Engine Propulsion Light Treads Treads Light Treads Utility High-capacity Storage Unit Device Improved Heat Sink Storage High-capacity Storage Unit Protection Light Armor Plating Weapon Beam Cannon Energy Gun EM Pulse Gun Energy Cannon Beam Cannon Launcher Grenade Launcher Impact Weapon Maul Special Melee Weapon Datajack Build | -11 -10 -9 -8 ------- Run | Scr Mat Mat Mat Slots Evolved 4 | . . 2 2 Power 2 | . . 1 1 Propulsion . | . . . . Utility 1 | . . . 1 Weapon 1 | . . 1 . Parts Attached 44 | 6 29 9 . Power 5 | 1 2 2 . Engine 5 | 1 2 2 . Core . | . . . . Reactor . | . . . . Propulsion 6 | 2 1 3 . Treads 6 | 2 1 3 . Leg . | . . . . Wheel . | . . . . Hover . | . . . . Flight . | . . . . Utility 5 | 1 4 . . Device 1 | . 1 . . Storage 3 | 1 2 . . Processor . | . . . . Hackware . | . . . . Protection 1 | . 1 . . Artifact . | . . . . Weapon 28 | 2 22 4 . Energy Gun 4 | 2 1 1 . Energy Cannon 12 | . 11 1 . Ballistic Gun . | . . . . Ballistic Cannon . | . . . . Launcher 1 | . 1 . . Special Weapon . | . . . . Impact Weapon 1 | . . 1 . Slashing Weapon . | . . . . Piercing Weapon . | . . . . Special Melee Weapon 10 | . 9 1 . Unidentified Prototypes . | . . . . Parts Lost 2 | . 1 1 . Power . | . . . . Propulsion . | . . . . Utility . | . . . . Weapon 2 | . 1 1 . Highest Loss Streak 1 | . 1 1 . Average Slot Usage (%) 98 | . 97 99 . Engine 15 | . 14 22 . Treads 26 | . 27 22 . Device 10 | . 10 11 . Storage 13 | . 14 11 . Energy Gun 10 | . 10 10 . Energy Cannon 14 | . 15 11 . Special Melee Weapon 2 | . 1 7 . Naked Turns . | . . . . Heaviest Build 58 | 12 46 58 . Greatest Support 40 | 40 40 40 . Greatest Overweight (x) 3 | 3 2 1 . Average Overweight (x) . | 1 . 1 . Largest Inventory Capacity 12 | 6 12 12 . Average Capacity 11 | 5 11 12 . Most Carried 10 | 2 10 10 . Average Carried 6 | . 5 8 . Final Capacity 12 | 6 12 12 12 Final Carried 10 | . 10 9 9 Class Distribution -------------------- 90% | Mutant 9% | Scavenger-Mutant Dominant Class ---------------- Mutant | -10/Materials Mutant | -9/Materials Mutant | -8/Materials Resources | -11 -10 -9 -8 ----------- Run | Scr Mat Mat Mat Matter Collected 610 | 204 336 70 . Remotely . | . . . . Salvage Created 1008 | . 593 415 . Parts 65 | . 39 26 . Haulers Intercepted . | . . . . Recyclers Shooed 1 | . 1 . . Parts Field Recycled . | . . . . Retrieved Matter . | . . . . Parts Self-Destructed . | . . . . Prevented . | . . . . Kills | -11 -10 -9 -8 ------- Run | Scr Mat Mat Mat Combat Hostiles Destroyed 23 | . 15 8 . Guns 8 | . 5 3 . Cannons 15 | . 10 5 . Classes Destroyed 7 | . 4 3 . Recycler 1 | . 1 . . Operator 2 | . . 2 . Watcher 3 | . 2 1 . Swarmer 8 | . 6 2 . Grunt 11 | . 9 2 . Brawler 1 | . . 1 . Sentry 3 | . . 3 . Best Kill Streak 3 | . 3 2 . Combat Bots Only 3 | . 3 1 . Max Kills in Single Turn 1 | . 1 1 . Gunslinging . | . . . . Exploded . | . . . . Melee . | . . . . Uniques/NPCs Destroyed . | . . . . Combat | -11 -10 -9 -8 -------- Run | Scr Mat Mat Mat Damage Taken 710 | . 343 367 . Core 71 | . 33 38 . Absorbed by Shields . | . . . . Core Remaining (%) 92 | 100 86 90 . Volleys Fired 88 | . 53 35 . Largest 2 | . 2 2 . Hottest 120 | . 120 120 . Shots Fired 172 | . 102 70 . Gun 86 | . 55 31 . Cannon 86 | . 47 39 . Launcher . | . . . . Special . | . . . . Kinetic . | . . . . Thermal 140 | . 101 39 . Explosive . | . . . . Electromagnetic 32 | . 1 31 . Robot Hit Streak 35 | . 13 35 . Robot Miss Streak 4 | . 4 2 . Penetration Max . | . . . . Secondary Targets . | . . . . Shots Hit Robots 121 | . 67 54 . Core Hits 38 | . 22 16 . Critical Hits 1 | . . 1 . Critical Kills . | . . . . Critical Parts Destroyed 1 | . . 1 . Melee Attacks . | . . . . Impact . | . . . . Slashing . | . . . . Piercing . | . . . . Sneak Attacks . | . . . . Combat Hostiles . | . . . . Follow-up Attacks . | . . . . Damage Inflicted 1672 | . 930 742 . Guns 728 | . 407 321 . Cannons 928 | . 507 421 . Explosions . | . . . . Melee . | . . . . Ramming 16 | . 16 . . Kinetic . | . . . . Thermal 1323 | . 902 421 . Explosive . | . . . . Electromagnetic 333 | . 12 321 . Impact . | . . . . Slashing . | . . . . Piercing . | . . . . Highest Corruption . | . . . . Average Corruption . | . . . . Corruption Purged . | . . . . Overload Shots . | . . . . Overflow Damage 31 | . 25 6 . Projectiles 31 | . 25 6 . Explosions . | . . . . Melee . | . . . . Knockbacks . | . . . . Impact . | . . . . Kinetic . | . . . . Secondary . | . . . . Self-Inflicted Damage 24 | . . 24 . Shots 1 | . . 1 . Rammed 1 | . 1 . . Targets Rammed 2 | . 2 . . Kicked . | . . . . Crushed 1 | . 1 . . Highest Temperature 406 | . 406 126 . Average Temperature 65 | . 84 32 . Received Heat Transfer 342 | . 192 150 . Siege Activations . | . . . . Robots Corrupted . | . . . . Combat Hostiles . | . . . . Parts Fried 3 | . . 3 . Impact Corruptions . | . . . . Robots Melted . | . . . . Combat Hostiles . | . . . . Parts Melted 5 | . 5 . . Heat Transferred 3038 | . 2150 888 . Parts Sabotaged . | . . . . Parts Stolen . | . . . . Parts Stripped . | . . . . Power Chain Reactions 1 | . . 1 . Missiles Intercepted . | . . . . Alert | -11 -10 -9 -8 ------- Run | Scr Mat Mat Mat Peak Influence 256 | . 256 196 . Initial 70 | . . . 70 Average 77 | . 76 87 . Maximum Alert Level 1 | . 1 . . Low Security (%) 95 | 100 93 100 . Level 1 4 | . 6 . . Level 2 . | . . . . Level 3 . | . . . . Level 4 . | . . . . Level 5 . | . . . . High Security . | . . . . Max Security . | . . . . Squads Dispatched 7 | . 4 3 . Investigation 4 | . 4 . . Extermination . | . . . . Reinforcement 3 | . . 3 . Assault . | . . . . Garrison . | . . . . Intercept . | . . . . Construction Impeded . | . . . . Haulers Reinforced . | . . . . Stealth | -11 -10 -9 -8 --------- Run | Scr Mat Mat Mat Distress Signals 5 | . 3 2 . Communications Jammed . | . . . . Distress Signals . | . . . . Times Spotted 43 | . 30 13 . Peak Tracking Total 5 | . 5 5 . Tactical Retreats 5 | . 3 2 . Traps | -11 -10 -9 -8 ------- Run | Scr Mat Mat Mat Traps Triggered 1 | . 1 . . Indirectly . | . . . . Trap Hack Attempts . | . . . . Triggered . | . . . . Disarmed . | . . . . Reprogrammed . | . . . . Reused . | . . . . Traps Extracted . | . . . . Installed . | . . . . Triggered . | . . . . Machines | -11 -10 -9 -8 ---------- Run | Scr Mat Mat Mat Machines Disabled 7 | . 2 5 . Max in Single Turn 3 | . 1 3 . Machines Sabotaged . | . . . . Garrisons Compromised . | . . . . Overloaded Fab Kills . | . . . . Fab Network Shutdowns . | . . . . Hacking | -11 -10 -9 -8 --------- Run | Scr Mat Mat Mat Machines Accessed 9 | . 8 1 . Terminals 5 | . 5 . . Fabricators . | . . . . Repair Stations 1 | . 1 . . Recycling Units 3 | . 2 1 . Scanalyzers . | . . . . Garrison Access . | . . . . Total Hacks 33 | . 28 5 . Successful 25 | . 20 5 . Failed 7 | . 7 . . Catastrophic . | . . . . Database Lockouts 1 | . 1 . . Manual . | . . . . Terminals 21 | . 21 . . Fabricators . | . . . . Repair Stations 3 | . 3 . . Recycling Units 9 | . 4 5 . Scanalyzers . | . . . . Garrison Access . | . . . . Terminal Hacks 15 | . 15 . . Record 9 | . 9 . . Recycling Unit Index 1 | . 1 . . Scanalyzer Index 1 | . 1 . . Dispatch Records 1 | . 1 . . Transport Status 1 | . 1 . . Zone Layout 2 | . 2 . . Fabricator Hacks . | . . . . Repair Station Hacks 3 | . 3 . . Scan Component 2 | . 2 . . Repair 1 | . 1 . . Recycling Unit Hacks 7 | . 2 5 . Process 1 | . . 1 . Report Inventory 4 | . 2 2 . Retrieve Matter 2 | . . 2 . Scanalyzer . | . . . . Garrison Access Hacks . | . . . . Unauthorized Hacks . | . . . . Terminals . | . . . . Fabricators . | . . . . Repair Stations . | . . . . Recycling Units . | . . . . Scanalyzers . | . . . . Garrison Access . | . . . . Data Cores Recovered 2 | . . 2 . Used . | . . . . Hacking Detections 5 | . 5 . . Full Trace Events 3 | . 3 . . Feedback Events . | . . . . Feedback Blocked . | . . . . Robot Schematics Acquired . | . . . . Robots Built . | . . . . Matter . | . . . . Time . | . . . . Total Robot Build Rating . | . . . . Part Schematics Acquired . | . . . . Parts Built . | . . . . Matter . | . . . . Time . | . . . . Total Part Build Rating . | . . . . Parts Repaired 1 | . 1 . . Time 26 | . 26 . . Parts Recycled . | . . . . Recycled Matter 33 | . . 33 . Retrieved Matter 33 | . . 33 . Retrieved Components . | . . . . Parts Scanalyzed . | . . . . Part Schematics Acquired . | . . . . Parts Damaged . | . . . . Bothacking | -11 -10 -9 -8 ------------ Run | Scr Mat Mat Mat Used RIF Installer . | . . . . Robots Hacked . | . . . . Non-combat . | . . . . Combat . | . . . . Robot Hacks Applied . | . . . . Relay Couplers Released . | . . . . Robots Rewired . | . . . . Allies Hacked . | . . . . Hacks Repelled . | . . . . Allies | -11 -10 -9 -8 -------- Run | Scr Mat Mat Mat Total Allies . | . . . . Largest Group . | . . . . Highest-Rated Group . | . . . . Highest-Rated Ally . | . . . . Total Orders . | . . . . Ally Attacks . | . . . . Total Damage . | . . . . Kills . | . . . . Allies Corrupted . | . . . . Allies Melted . | . . . . Intel | -11 -10 -9 -8 ------- Run | Scr Mat Mat Mat Robot Analysis Total . | . . . . Derelict Logs Recovered . | . . . . Drone Launches . | . . . . Drone Recoveries . | . . . . Exploration | -11 -10 -9 -8 ------------- Run | Scr Mat Mat Mat Turns Passed 2334 | 60 1718 556 . Spaces Moved 1117 | 32 845 240 . Core 19 | 19 . . . Treads 1098 | 13 845 240 . Legs . | . . . . Wheels . | . . . . Hover . | . . . . Flight . | . . . . Fastest Speed 50 | 50 160 180 . Average Speed 176 | 154 176 180 . Slowest Speed 200 | 200 200 180 . Overloaded Moves . | . . . . Propulsion Burnouts . | . . . . Robots Hopped . | . . . . Cave-ins Triggered . | . . . . Exploration Rate (%) 30 | 4 99 19 1 Regions Visited 3 Branch Regions . Pre-discovered Areas . | . . . . Known Exits Taken . | . . . . Unknown Exits Taken 3 | 1 1 1 . Scrap Searched . | . . . . Spaces Dug . | . . . . Terrain Destroyed 6 | . . 6 . Melee . | . . . . Projectile . | . . . . AOE 6 | . . 6 . Terrain Rammed . | . . . . Walls Destroyed . | . . . . Machines Disabled . | . . . . Actions | -11 -10 -9 -8 --------- Run | Scr Mat Mat Mat Total 1299 | 43 963 293 . Wait . | . . . . Move 1114 | 31 844 239 . Hop . | . . . . Pick Up 36 | 6 24 6 . Fast Attach . | . . . . Attach 14 | 6 5 3 . Detach . | . . . . Swap 30 | . 24 6 . Drop 15 | . 11 4 . Fire 88 | . 53 35 . Melee . | . . . . Ram . | . . . . Kick . | . . . . Crush 2 | . 2 . . Escape Stasis . | . . . . Rewire . | . . . . Trap . | . . . . Miscellaneous . | . . . . Route ------- -11/Scrapyard -10/Materials (discovered 4 exits: *Mat x3 / [*Min]) -9/Materials -8/Materials History --------- Turn | Location | Event 24 | -11/Scrapyard | Discovered new exit (range 16) 61 | -11/Scrapyard | Entered Materials 307 | -10/Materials | Build established: Mutant 380 | -10/Materials | Discovered new exit (range 13) 507 | -10/Materials | Discovered new exit (range 15) 811 | -10/Materials | Central database locked down 861 | -10/Materials | Discovered new exit (range 6) 1036 | -10/Materials | Repaired Lgt. Treads 1707 | -10/Materials | Discovered new exit (range 16) 1779 | -10/Materials | Entered another Materials area 1779 | -9/Materials | Evolved 2 slots: Power x1, Weapon x1 2251 | -9/Materials | Discovered new exit (range 3) 2335 | -9/Materials | Entered another Materials area 2335 | -8/Materials | Evolved 2 slots: Power x1, Utility x1 2335 | -8/Materials | Self-destructed Last Messages --------------- Acquired 10 matter. W-16 Scout distress signal alerts nearby ally. Visual Processing Unit fried. Hover Unit fried. W-16 Scout destroyed. R-06 Scavenger collects Lgt. Armor Plating. ALERT: Hostiles spotted, dispatching reinforcements to Terminal M008. ALERT: Hostiles spotted, dispatching reinforcements to Terminal M011. ALERT: Hostiles spotted, dispatching reinforcements to Terminal M005. S-10 Pest destroyed. K-01 Serf collects debris. R-06 Scavenger collects Flight Unit. K-01 Serf cleans the Matter Pump. R-06 Scavenger collects Lgt. Ion Engine. K-01 Serf collects debris. R-06 Scavenger collects Hover Unit. K-01 Serf collects debris. PARAMETERS=POWER_1,UTILITY_1 LOCATION=UNKNOWN GOAL=ESCAPE Map ----- +----------------------------------------------------+ | | | | | | | | | | | | | | | | | | | | | | | | | | | | | | | | | | | ?????????????????????????????????????????????????? | | ?????????????????????????????????????????????????? | | ?????????????????????????????????????????????????? | | ?????????????????????????????????????????????????? | | ?????????????????????????????????????????????????? | | ?????????????????????????????????????????????????? | | ?????????????###############?????????????????????? | | ?????????? #?????????????????????? | | ?????????? @ #?????????????????????? | | ?????????????????####### #?????????????????????? | | ???????????????????????+ #?????????????????????? | | ???????????????????????# ?????????????????????? | | ???????????????????????# ????????????????????? | | ???????????????????????# ???????????????????? | | ???????????????????????#### "???????????????????? | | ??????????????????????????? ""??????????????????? | | ??????????????????????????? """?????????????????? | | ??????????????????????????? ""??????????????????? | | ???????????????????????????? ??????????????????? | | ???????????????????????????? ??????????????????? | | ???????????????????????????? ??????????????????? | | ???????????????????????????? "??????????????????? | | ????????????????????????????? ???????????????????? | | ?????????????????????????????????????????????????? | | ?????????????????????????????????????????????????? | | ?????????????????????????????????????????????????? | | ?????????????????????????????????????????????????? | | ?????????????????????????????????????????????????? | | ?????????????????????????????????????????????????? | | ?????????????????????????????????????????????????? | | ?????????????????????????????????????????????????? | | ?????????????????????????????????????????????????? | | ?????????????????????????????????????????????????? | +----------------------------------------------------+ Best States ------------- Heat Dissipation 42 Energy Generation 19 Energy Capacity 430 Matter Stores 300 Matter Capacity 300 Sight Range 16 Terrain Scan Density 10 Armor Coverage 150 Resistance: KI 20 Resistance: TH 20 Resistance: EX 20 Resistance: EM 20 Resistance: I 20 Resistance: S 20 Resistance: P 20 Evasion (%) 40 Recoil Reduction 2 Offensive Hacking 10 Item Schematics ----------------- None Robot Schematics ------------------ None Fabricated ------------ Nothing Alien Tech Used ----------------- None Achievements -------------- None Challenges ------------ None Game ------ Seed NeutralizingMicroSheargun Manual? 0 Play Time 00:16:24 Cumulative 9.9 hours Start 2020.11.13 @ 15:57:52 End 2020.11.13 @ 16:14:19 Sessions 1 Manual Loads 0 Difficulty Adventurer Special Mode Halloween2020/ForbiddenLore Game No. 38 Rogue 1 Adventurer 37 Explorer 0 Win Type - Total 0 Types 0/0/0/0/0/0/0/0/0 Lore% 7 Gallery% 16 Achievement% 12 Wizard Run 0 Options --------- ASCII 0 Keyboard 0 Movement Mouse Keybinds 0 Fullscreen 1 Font 18/SmallcapsGlow Map View 76x50 Tactical HUD 0 Map Filters NONE Filters NONE Steam 1 RUN: 4329711a-bfd6-4a4d-abcf-28a6e8fd497f